bitfinex/quotes_ETHUSD_20260213
["timestamp","ask_amount","ask_price","bid_price","bid_amount"]
[1770994010411,2.341,1995.8,1994.2,1.288]
[1770994010954,1.25269329,1995.7,1994.3,1.25357268]
[1770994011156,0.00153886,1996.0,1994.3,2.15657268]
[1770994011318,1.25256776,1995.9,1994.4,14.377769]
[1770994011651,0.00153886,1996.0,1994.7,7.216307]
[1770994011812,1.2540655,1996.0,1994.6,6.641371]
[1770994012007,1.2540655,1996.0,1994.3,2.15657268]
[1770994012361,4.796764,1995.9,1994.1,1.25468325]
[1770994012511,4.796764,1995.9,1994.3,0.001]
[1770994012512,2.338,1995.9,1994.3,0.001]
[1770994012821,3.59063052,1995.8,1994.3,0.001]
[1770994013022,9.115794,1995.7,1994.3,0.001]
[1770994013221,1.25263052,1995.8,1994.3,0.001]
[1770994013408,3.58963052,1995.8,1994.3,0.001]
[1770994013602,1.25263052,1995.8,1994.3,0.001]
[1770994013810,2.337,1995.7,1994.3,0.001]
[1770994014843,1.25275606,1995.6,1994.3,0.001]
[1770994015221,2.334,1995.5,1994.3,0.001]
[1770994016421,5.01025798,1996.1,1994.3,0.001]
[1770994016626,4.40131044,1996.2,1994.3,0.62210618]
[1770994016627,2.15556776,1995.9,1994.3,0.62210618]
[1770994016918,0.00153886,1996.0,1994.5,19.913265]
[1770994017123,1.25405571,1996.0,1994.5,1.278]
[1770994017521,1.25405571,1996.0,1994.3,0.001]
[1770994017727,2.93678469,1995.9,1994.3,1.25453132]
[1770994018048,2.331,1995.8,1994.3,1.25453132]
[1770994018250,0.60578469,1995.9,1994.3,1.25453132]
[1770994018549,1.427,1995.8,1994.3,1.25453132]
[1770994018736,2.33,1995.9,1994.3,1.25453132]
[1770994018939,1.25263052,1995.8,1994.3,0.001]
[1770994019540,5.00843713,1996.7,1995.1,9.96396354]
[1770994019852,5.00843713,1996.7,1995.2,0.62110618]
[1770994020050,5.00843713,1996.7,1995.0,0.00153886]
[1770994020051,10.56974823,1996.3,1995.0,0.00153886]
[1770994020358,9.96396354,1995.8,1994.1,0.001]
[1770994020512,4.64933,1995.4,1994.1,1.25469659]
[1770994020718,9.96396354,1995.8,1994.1,1.25469659]
[1770994020719,2.331,1995.3,1994.1,1.25469659]
[1770994020924,2.331,1995.5,1994.1,0.001]
[1770994021229,0.00153886,1996.0,1994.4,0.60538527]
[1770994021425,0.00153886,1996.0,1994.3,9.96396354]
[1770994021426,1.25404435,1996.0,1994.5,0.903]
[1770994021841,0.00153886,1996.0,1994.6,11.79505]
[1770994022022,0.00153886,1996.0,1994.9,0.60538527]
[1770994022218,1.2540552,1996.0,1995.0,1.276]
[1770994022422,0.00153886,1996.0,1995.0,1.276]
[1770994022824,0.00153886,1996.0,1995.0,6.28828008]
[1770994023025,0.00153886,1996.0,1995.1,1.25307002]
[1770994023424,2.68106539,1996.8,1995.1,1.25307002]
[1770994023921,0.63555482,1996.6,1995.0,0.00153886]
[1770994024120,0.63555482,1996.6,1995.0,1.25467018]
[1770994024121,6.493007,1996.5,1995.0,1.25467018]
[1770994024354,7.307074,1996.5,1995.0,1.25465511]
[1770994024521,0.63555482,1996.6,1995.0,1.25465511]
[1770994024842,1.25219133,1996.5,1995.0,0.00153886]
[1770994025148,2.327,1996.4,1995.0,0.00153886]
[1770994025523,1.25219133,1996.5,1995.0,0.00153886]
[1770994026523,0.002,1996.4,1995.0,0.00153886]
[1770994026719,1.423,1996.4,1995.0,0.00153886]
[1770994026924,0.002,1996.4,1995.0,0.00153886]
[1770994027619,0.63555482,1996.2,1995.0,0.00153886]
[1770994027922,3.464971,1995.7,1994.3,0.001]
[1770994028132,2.322,1995.6,1994.3,1.25457085]
[1770994028334,0.00153886,1996.0,1993.2,0.001]
[1770994028335,0.63555482,1994.9,1993.2,0.001]
[1770994028539,9.96396354,1995.0,1993.0,0.00153886]
[1770994028540,0.63555482,1994.4,1993.0,0.00153886]
[1770994028759,0.63555482,1994.4,1993.0,1.255907]
[1770994028957,1.25363554,1994.2,1993.0,0.00153886]
[1770994029171,2.1565921,1994.3,1993.0,0.00153886]
[1770994029334,12.118419,1994.1,1993.0,0.00153886]
[1770994029536,1.2535921,1994.3,1993.0,0.00153886]
[1770994029951,1.452,1994.2,1993.0,0.00153886]
[1770994030255,1.2535921,1994.3,1993.0,0.00153886]
[1770994030462,6.32642186,1995.2,1993.0,0.00153886]
[1770994030463,1.25319564,1994.9,1993.0,0.00153886]
[1770994030627,2.15770204,1995.0,1993.2,0.60538527]
[1770994030826,2.15770204,1995.0,1993.0,1.14149545]
[1770994030827,0.00153886,1995.0,1993.6,14.887689]
[1770994031065,0.00153886,1995.0,1993.9,3.193341]
[1770994031271,0.00153886,1996.0,1994.0,0.60538527]
[1770994031558,5.01036569,1995.9,1994.0,0.60692413]
[1770994031724,2.356,1995.8,1994.0,0.60692413]
[1770994031924,15.693395,1995.6,1994.0,0.00153886]
[1770994032154,0.63555482,1995.6,1994.0,0.00153886]
[1770994032557,2.356,1995.5,1994.0,0.00153886]
[1770994033059,1.25281884,1995.5,1994.1,2.03295]
[1770994033227,1.25281884,1995.5,1994.0,0.00153886]
[1770994033430,1.25263052,1995.8,1994.1,3.56121727]
[1770994033666,1.25263052,1995.8,1994.1,0.60538527]
[1770994033836,2.7070614,1996.0,1994.3,0.60538527]
[1770994034041,1.2540614,1996.0,1994.4,4.919488]
[1770994034235,1.452,1995.9,1994.4,3.44298]
[1770994034537,1.452,1995.9,1994.3,0.60538527]
[1770994034750,1.2540614,1996.0,1994.4,5.75608]
[1770994034950,0.00153886,1996.0,1994.7,1.2533213]
[1770994035161,0.00153886,1996.0,1994.8,3.46542]
[1770994035361,0.00153886,1996.0,1994.7,1.2533213]
[1770994035527,0.00153886,1996.0,1994.5,0.903]
[1770994035868,9.18685,1995.8,1994.5,0.903]
[1770994036077,4.634278,1995.8,1994.5,0.903]
[1770994036257,4.634278,1995.8,1994.5,2.15644166]
[1770994036456,4.374,1995.7,1994.5,0.903]
[1770994036666,2.934,1995.7,1994.1,1.25365602]
[1770994036872,1.449,1995.7,1994.1,1.25365602]
[1770994037071,1.25263052,1995.9,1994.1,1.25365602]
[1770994037287,14.42462282,1995.8,1994.1,1.25365602]
[1770994037468,29.90082136,1995.7,1994.0,2.55129967]
[1770994037678,9.96396354,1995.2,1994.0,0.00153886]
[1770994037989,1.449,1995.1,1994.0,0.00153886]
[1770994038158,7.81665,1994.9,1993.1,1.25428108]
[1770994038361,3.693684,1994.9,1993.1,1.25428108]
[1770994038579,0.00153886,1995.0,1993.2,4.948585]
[1770994038781,1.449,1994.9,1993.3,0.60538527]
[1770994039084,0.00153886,1995.0,1993.4,1.25413865]
[1770994039378,0.00153886,1995.0,1994.6,0.001]
[1770994039971,1.447,1995.7,1994.6,0.001]
[1770994040981,2.08255482,1995.7,1994.6,0.001]
[1770994041186,1.25275606,1995.6,1994.6,0.001]
[1770994041356,0.00153886,1996.0,1994.6,0.001]
[1770994041550,1.25256776,1995.9,1994.6,0.001]
[1770994042882,1.44753886,1996.0,1994.6,0.001]
[1770994042883,1.25404854,1996.0,1994.6,0.904]
[1770994043267,1.25404854,1996.0,1994.6,2.15736012]
[1770994043463,1.25404854,1996.0,1994.6,0.904]
[1770994043666,1.25404854,1996.0,1994.6,0.001]
[1770994043667,0.63555482,1995.6,1994.6,0.001]
[1770994044174,2.347,1995.5,1994.6,0.001]
[1770994044367,11.8535669,1996.0,1994.6,0.001]
[1770994044569,2.93415,1995.8,1994.6,1.25437026]
[1770994044868,2.347,1995.7,1994.6,0.001]
[1770994045075,2.347,1995.7,1994.6,1.25437936]
[1770994045264,2.347,1995.6,1994.6,0.001]
[1770994045474,1.444,1995.5,1994.6,0.001]
[1770994046000,1.25263052,1995.8,1994.6,0.001]
[1770994046295,17.349527,1995.6,1994.6,0.001]
[1770994046499,2.346,1995.5,1994.6,0.001]
[1770994047155,1.25294441,1995.3,1994.6,0.001]
[1770994047661,1.25263052,1995.8,1994.6,0.001]
[1770994047861,1.44353886,1996.0,1994.6,0.001]
[1770994047862,2.69604681,1996.0,1994.6,0.001]
[1770994048388,1.25404681,1996.0,1994.6,0.001]
[1770994049500,0.00153886,1996.0,1994.6,1.25438413]
[1770994049995,1.44253886,1996.0,1994.6,1.25438413]
[1770994050191,2.07809368,1996.0,1994.6,1.25438413]
[1770994050392,0.00153886,1996.0,1994.6,1.25438413]
[1770994050706,1.44,1995.9,1994.6,1.25438413]
[1770994050892,0.00153886,1996.0,1994.6,1.25438413]
[1770994051304,0.00153886,1996.0,1994.9,0.18685624]
[1770994051508,0.002,1996.4,1995.1,10.632363]
[1770994051794,0.002,1996.4,1994.6,0.001]
[1770994051795,1.439,1996.3,1994.6,0.001]
[1770994052003,9.96396354,1995.7,1994.5,0.001]
[1770994052168,2.342,1995.6,1994.5,0.001]
[1770994052364,0.002,1995.9,1994.5,1.25444353]
[1770994052569,0.002,1995.9,1994.5,2.53444353]
[1770994052865,0.002,1995.9,1994.7,0.55223036]
[1770994053067,0.002,1995.9,1994.8,3.848322]
[1770994053596,0.00353886,1996.0,1995.0,2.377504]
[1770994053800,0.00353886,1996.0,1994.9,1.805426]
[1770994054501,0.903,1995.9,1994.5,0.001]
[1770994054669,2.339,1995.9,1994.5,1.25443987]
[1770994055371,1.25263052,1995.8,1994.5,0.001]
[1770994056103,1.25261779,1995.9,1994.6,0.903]
[1770994056299,1.25609459,1996.0,1994.6,0.903]
[1770994057073,0.59284707,1995.7,1994.5,0.001]
[1770994057278,1.433,1995.8,1994.5,0.001]
[1770994057472,1.25269329,1995.7,1994.5,0.001]
[1770994057673,5.01034041,1995.9,1994.5,0.001]
[1770994057877,1.25610662,1996.0,1994.5,0.001]
[1770994057878,0.00353886,1996.0,1994.7,0.58201701]
[1770994058192,0.00353886,1996.0,1994.9,12.065439]
[1770994058379,0.00353886,1996.0,1994.9,2.021073]
[1770994058709,0.002,1996.4,1995.2,11.666824]
[1770994058871,0.002,1996.4,1995.3,6.823976]
[1770994059070,0.002,1996.4,1995.4,0.903]
[1770994059305,0.002,1996.5,1995.6,5.557671]
[1770994059509,0.002,1996.5,1995.7,1.25269329]
[1770994059695,0.002,1996.5,1995.6,1.25270818]
[1770994060007,0.002,1996.5,1995.5,1.276]
[1770994060314,1.432,1996.5,1995.4,0.903]
[1770994060986,0.903,1996.4,1995.4,0.903]
[1770994061292,0.002,1996.5,1995.0,1.25466889]
[1770994062578,0.002,1996.5,1995.4,20.56815601]
[1770994062779,0.00453886,1997.0,1995.6,7.972113]
[1770994063081,1.25644435,1997.0,1995.7,1.273]
[1770994063479,0.00453886,1997.0,1995.5,0.903]
[1770994063807,0.00453886,1997.0,1995.5,2.15581644]
[1770994064111,2.33353886,1997.0,1995.5,2.15581644]
[1770994064313,0.00453886,1997.0,1995.5,2.15581644]
[1770994064779,0.00453886,1997.0,1995.7,0.76887325]
[1770994064980,0.00453886,1997.0,1995.8,1.27]
[1770994065416,0.002,1996.4,1995.8,1.27]
[1770994065586,0.002,1996.4,1995.9,1.25256776]
[1770994066415,0.002,1996.4,1995.8,2.52262218]
[1770994066585,0.00453886,1997.0,1995.8,2.52262218]
[1770994067416,0.00453886,1997.0,1995.8,1.27]
[1770994067714,0.00453886,1997.0,1995.8,2.52262692]
[1770994067919,0.00453886,1997.0,1995.5,2.15578113]
[1770994068082,0.00453886,1997.0,1995.7,30.0]
[1770994068284,0.00453886,1997.0,1995.7,3.727844]
[1770994068494,0.00453886,1997.0,1995.6,0.58201701]
[1770994068893,0.00453886,1997.0,1995.5,2.15578113]
[1770994069097,0.00453886,1997.0,1995.7,7.797905]
[1770994069298,0.00453886,1997.0,1995.6,0.58201701]
[1770994069507,0.00453886,1997.0,1995.5,2.15578113]
[1770994070387,0.00453886,1997.0,1995.6,7.464052]
[1770994070582,0.00453886,1997.0,1995.6,3.145513]
[1770994070822,0.59738593,1997.0,1995.5,2.15581105]
[1770994071025,0.00453886,1997.0,1995.5,2.15581105]
[1770994071527,0.00453886,1997.0,1995.6,2.341439]
[1770994071824,0.00453886,1997.0,1995.8,0.58201701]
[1770994072124,0.00453886,1997.0,1996.0,8.006603]
[1770994072418,0.00453886,1997.0,1995.9,1.268]
[1770994072613,0.00453886,1997.0,1996.0,3.650936]
[1770994072819,0.00453886,1997.0,1995.9,1.268]
[1770994074237,0.00453886,1997.0,1995.5,2.73782383]
[1770994074389,0.00453886,1997.0,1995.5,2.15580682]
[1770994075203,0.90753886,1997.0,1995.5,2.15580682]
[1770994075903,1.25641667,1997.0,1995.5,2.15580682]
[1770994076423,1.84926374,1997.0,1995.5,1.25280682]
[1770994076920,0.59284707,1996.9,1995.2,1.25300721]
[1770994077424,0.59284707,1996.7,1995.6,0.001]
[1770994077815,0.002,1996.9,1995.6,0.001]
[1770994078896,0.00653886,1997.0,1995.6,0.001]
[1770994078897,0.00653886,1997.0,1995.7,1.48501701]
[1770994079096,0.002,1997.3,1996.0,9.106466]
[1770994079292,0.002,1997.3,1996.2,14.438702]
[1770994079637,0.002,1997.3,1996.2,4.584535]
[1770994079930,0.002,1997.3,1996.3,1.25231678]
[1770994080126,0.002,1997.3,1996.4,2.163]
[1770994080435,0.00153886,1998.0,1996.8,9.95702218]
[1770994080619,0.00153886,1998.0,1996.9,0.54963936]
[1770994080929,0.00153886,1998.0,1997.0,1.26]
[1770994080930,1.25279153,1998.0,1997.0,1.26]
[1770994081092,0.00153886,1998.0,1997.0,1.26]
[1770994081298,5.00290113,1998.9,1997.3,12.896434]
[1770994081544,0.00153886,1999.0,1997.5,0.54963936]
[1770994081742,1.25216519,1999.0,1997.3,9.95702218]
[1770994081919,0.00153886,2000.0,1998.3,0.54963936]
[1770994082096,0.00153886,2000.0,1998.4,3.96664016]
[1770994082529,0.00153886,2000.0,1998.5,2.944437]
[1770994082730,0.52749311,1999.8,1998.0,1.25277668]
[1770994083165,0.00153886,2000.0,1998.2,0.54963936]
[1770994083297,0.00153886,2000.0,1998.5,30.54963936]
[1770994083618,0.00153886,2000.0,1998.8,2.231292]
[1770994083821,0.00153886,2000.0,1998.9,2.165]
[1770994084400,0.52903197,2000.0,1998.2,2.15308695]
[1770994084600,0.52903197,2000.0,1998.2,0.902]
[1770994084854,0.52749311,1999.8,1998.2,0.902]
[1770994085122,0.52749311,1999.5,1997.6,3.691393]
[1770994085435,0.00153886,1999.0,1997.7,4.668393]
[1770994085603,0.90353886,2000.0,1997.9,8.43235236]
[1770994085797,0.00153886,2000.0,1998.2,0.7364956]
[1770994086034,0.00153886,2000.0,1998.7,0.18685624]
[1770994086246,0.00153886,2000.0,1998.6,1.25087561]
[1770994086541,0.00153886,2000.0,1998.7,2.167]
[1770994086703,0.00153886,2000.0,1998.6,1.25087561]
[1770994086907,0.00153886,2000.0,1998.7,1.265]
[1770994087108,0.52903197,2000.0,1998.7,1.265]
[1770994087510,0.00153886,2000.0,1998.7,1.265]
[1770994088123,0.52903197,2000.0,1998.7,1.265]
[1770994088319,0.00153886,2000.0,1998.7,2.51580569]
[1770994088518,0.24275753,2001.0,1999.1,0.7364956]
[1770994088726,1.49213748,2001.0,1999.3,10.326096]
[1770994088932,1.49213748,2001.0,1999.4,2.167]
[1770994089233,1.49213748,2001.0,1999.2,0.54963936]
[1770994089419,1.49215597,2001.0,1999.4,10.515174]
[1770994089620,1.49215597,2001.0,1999.5,0.54963936]
[1770994089821,1.49215597,2001.0,1999.6,5.07487]
[1770994090026,1.49215597,2001.0,1999.6,1.25025005]
[1770994090223,0.002,2000.8,1999.6,1.25025005]
[1770994090748,0.002,2000.8,1999.7,3.570618]
[1770994091047,1.24887601,2001.8,1999.8,10.138873]
[1770994091244,0.52749311,2001.6,1999.6,1.25025005]
[1770994091446,2.15087601,2001.8,1999.9,10.030834]
[1770994091650,2.15087601,2001.8,1999.9,3.393]
[1770994092037,2.15087601,2001.8,2000.0,1.25]
[1770994092246,2.15087601,2001.8,2000.1,17.217675]
[1770994092441,2.15087601,2001.8,2000.1,17.35966236]
[1770994092628,4.99482972,2002.1,2000.3,20.20919936]
[1770994092832,4.99482972,2002.1,2000.0,1.25]
[1770994093017,0.52749311,2001.3,1999.8,0.902]
[1770994093229,4.99482972,2002.1,1999.1,0.902]
[1770994093230,0.52749311,2000.8,1999.1,0.902]
[1770994093465,10.48451529,2001.8,1999.4,0.54963936]
[1770994093666,4.99482972,2002.1,1999.8,0.54963936]
[1770994093956,4.99482972,2002.1,2000.2,9.795098]
[1770994094122,2.304,2002.0,2000.2,1.24983852]
[1770994094454,2.304,2002.0,1999.7,5.18752474]
[1770994094455,0.52749311,2001.6,1999.7,1.25018752]
[1770994094656,0.52749311,2001.6,1999.9,1.266]
[1770994094862,2.303,2001.8,2000.0,11.977326]
[1770994095154,19.870856,2001.7,1999.9,1.266]
[1770994095331,14.610348,2001.6,1999.7,1.25018752]
[1770994095521,4.48569,2001.6,1999.8,1.265]
[1770994095838,2.82949311,2001.7,1999.8,1.265]
[1770994096038,1.24900079,2001.6,1999.9,14.2308465]
[1770994096238,1.24900079,2001.6,1999.9,1.2500625]
[1770994096560,1.24900079,2001.6,2000.1,16.026113]
[1770994096918,1.24900079,2001.6,2000.1,6.392618]
[1770994097150,1.24898713,2001.7,2000.2,26.702239]
[1770994097449,1.24898713,2001.7,2000.2,3.79662]
[1770994097650,1.24898713,2001.7,2000.3,8.702456]
[1770994097838,1.24898713,2001.7,2000.4,1.263]
[1770994098149,1.24875124,2002.0,2000.5,1.24968757]
[1770994098336,1.24875124,2002.0,2000.5,2.15068757]
[1770994098925,1.24875124,2002.0,2000.5,0.901]
[1770994100474,4.9957536,2002.1,2000.5,2.15065159]
[1770994100621,5.52324671,2002.1,2000.5,2.15065159]
[1770994100951,0.52749311,2001.7,2000.1,0.901]
[1770994101159,0.52749311,2001.6,2000.1,0.901]
[1770994101316,10.48451529,2001.1,1999.2,7.8476252]
[1770994101517,10.48451529,2001.1,1999.3,4.165]
[1770994101748,10.48451529,2001.6,1999.4,0.54963936]
[1770994101954,1.396,2001.2,1999.5,4.86615]
[1770994102156,1.396,2001.2,1999.4,0.54963936]
[1770994102322,0.52749311,2001.2,1999.3,6.324107]
[1770994102530,1.24937531,2001.0,1999.5,11.427144]
[1770994102759,1.24937531,2001.0,1999.5,11.97678336]
[1770994102964,9.95702218,2001.6,1999.8,0.54963936]
[1770994102965,4.99646205,2001.5,1999.8,0.54963936]
[1770994103144,4.99646205,2001.5,1999.7,27.014086]
[1770994103145,4.99646205,2001.5,1999.9,2.162]
[1770994103525,4.99646205,2001.5,2000.0,10.851721]
[1770994103726,1.2489384,2001.7,2000.0,10.851721]
[1770994104037,1.2489384,2001.7,2000.0,3.274348]
[1770994104427,4.9977536,2001.8,2000.1,1.2499375]
[1770994104428,5.52524671,2001.8,2000.1,1.2499375]
[1770994104627,5.52524671,2001.8,2000.2,4.402465]
[1770994104824,1.59874597,2001.9,2000.3,0.54963936]
[1770994105044,0.0064266,2002.8,2001.1,0.54963936]
[1770994105247,1.25469265,2002.8,2001.2,9.80777636]
[1770994105455,1.78218576,2002.8,2001.2,2.53306269]
[1770994105646,1.25469265,2002.8,2001.2,2.162]
[1770994105845,4.99115584,2003.6,2001.4,0.54963936]
[1770994106102,4.99115584,2003.6,2001.7,6.54084]
[1770994106394,9.95702218,2003.3,2001.6,0.54963936]
[1770994106594,1.24800319,2003.2,2001.6,1.79859333]
[1770994107103,1.24800319,2003.2,2001.2,2.162]
[1770994107271,1.24800319,2003.2,2000.6,0.901]
[1770994107272,10.48451529,2002.5,2000.6,0.901]
[1770994107489,0.52749311,2002.9,2000.7,2.63318]
[1770994107795,0.52749311,2002.7,2000.6,2.15060382]
[1770994107963,2.296,2002.8,2000.6,2.15060382]
[1770994107964,2.30033,2002.3,2000.6,0.901]
[1770994108162,13.41646,2002.6,2000.6,2.15058483]
[1770994108364,0.261239,2003.0,2000.8,0.54963936]
[1770994108365,9.95702218,2003.0,2000.8,0.54963936]
[1770994108561,1.24825244,2002.8,2001.0,0.54963936]
[1770994108765,0.52749311,2002.7,2000.8,1.24946648]
[1770994108991,1.24825244,2002.8,2000.8,1.262]
[1770994108992,0.52749311,2002.4,2000.8,1.262]
[1770994109285,15.29765111,2002.3,2000.8,1.262]
[1770994109486,0.1024,2002.7,2000.8,2.5114855]
[1770994109666,10.924555,2002.6,2000.8,2.5114855]
[1770994109866,5.70215,2002.6,2000.8,1.262]
[1770994110074,0.52749311,2002.5,2000.8,1.262]
[1770994110385,8.221575,2002.4,2000.8,1.262]
[1770994110556,1.24856415,2002.3,2000.8,1.262]
[1770994111252,5.824708,2002.2,2000.8,1.262]
[1770994111462,2.293,2002.2,2000.7,0.901]
[1770994111668,9.95702218,2001.7,1999.9,0.9]
[1770994111874,6.68,2001.6,1999.9,2.1500531]
[1770994112118,2.292,2001.6,1999.9,2.1500531]
[1770994112258,2.292,2001.6,1999.9,0.9]
[1770994112479,1.24912561,2001.4,2000.0,8.154092]
[1770994112683,1.24912561,2001.4,1999.9,0.9]
[1770994112895,1.24912561,2001.4,1999.9,2.15003361]
[1770994113179,1.24912561,2001.4,2000.0,2.43295]
[1770994113383,1.24912561,2001.4,1999.9,2.15003361]
[1770994113384,1.24912561,2001.4,1999.9,2.1500531]
[1770994113608,2.63812561,2001.4,1999.9,0.9]
[1770994113921,2.63812561,2001.4,1999.9,2.15002493]
[1770994114100,1.24912561,2001.4,2000.0,2.63854]
[1770994114413,1.24912561,2001.4,2000.0,4.009915]
[1770994114627,4.99650244,2001.7,2000.1,17.466083]
[1770994114783,4.99650244,2001.7,2000.2,2.48735]
[1770994114983,4.99650244,2001.7,2000.3,1.254]
[1770994115398,4.99474656,2002.2,2000.5,5.335866]
[1770994115585,4.99474656,2002.2,2000.6,0.60196659]
[1770994115800,4.99474656,2002.2,2000.8,4.07486]
[1770994116003,1.24850179,2002.4,2000.8,4.28468]
[1770994116316,1.24806549,2003.1,2001.3,0.55658097]
[1770994116491,4.99226179,2003.4,2001.5,1.80564417]
[1770994116814,7.27926179,2003.4,2001.7,2.19157]
[1770994117027,4.99226179,2003.4,2001.6,0.901]
[1770994117182,4.99226179,2003.4,2001.6,1.45758097]
[1770994117389,4.99226179,2003.4,2001.7,4.01994597]
[1770994117615,4.99226179,2003.4,2001.7,0.55658097]
[1770994117805,0.61143422,2003.0,2001.6,0.901]
[1770994117989,0.61143422,2003.0,2000.7,0.9]
[1770994117990,0.61143422,2002.5,2000.7,0.9]
[1770994118317,3.51266422,2002.3,2000.7,0.9]
[1770994118485,1.24868887,2002.1,2000.7,2.14955926]
[1770994118687,1.24868887,2002.1,2000.7,0.9]
[1770994119015,3.53468887,2002.1,2000.7,0.9]
[1770994119219,1.24868887,2002.1,2000.7,2.14956024]
[1770994119625,1.24868887,2002.1,2000.8,5.494159]
[1770994119925,4.99354147,2002.6,2000.9,3.479671]
[1770994120283,2.147394,2002.5,2000.7,2.14956024]
[1770994120487,1.2483771,2002.8,2000.7,2.14956024]
[1770994120718,2.285,2002.7,2000.8,5.693147]
[1770994120890,2.285,2002.7,2000.8,4.679967]
[1770994121215,2.285,2002.7,2000.7,2.14956024]
[1770994121216,0.61143422,2002.4,2000.7,0.9]
[1770994121414,9.95702218,2002.1,2000.7,0.9]
[1770994121822,0.1024,2002.3,2000.7,0.9]
[1770994121991,1.385,2002.0,2000.7,0.9]
[1770994122192,1.385,2002.0,2000.5,0.001]
[1770994122410,5.08083422,2002.3,2000.5,1.25068562]
[1770994122620,1.24887601,2001.8,2000.5,0.001]
[1770994122997,0.61143422,2001.6,2000.5,0.001]
[1770994123200,1.24887601,2001.8,2000.5,0.001]
[1770994123425,1.24885218,2001.9,2000.6,4.30995]
[1770994123612,1.24843945,2002.5,2000.7,0.9]
[1770994123917,1.24843945,2002.5,2000.8,16.431046]
[1770994124127,1.24843945,2002.5,2000.8,4.120423]
[1770994124328,1.24843945,2002.5,2000.7,0.9]
[1770994124501,1.85987367,2002.5,2000.7,0.9]
[1770994124704,30.61143422,2002.2,2000.7,0.9]
[1770994125025,0.61143422,2001.7,2000.5,0.001]
[1770994125332,2.71143422,2001.5,2000.3,0.001]
[1770994125534,10.5684564,2001.3,2000.3,0.001]
[1770994125712,2.287,2001.2,2000.3,0.001]
[1770994126113,2.287,2001.2,1999.8,0.9]
[1770994126536,1.386,2001.1,1999.8,2.15012123]
[1770994126710,1.24937531,2001.0,1999.8,0.9]
[1770994127104,2.63637531,2001.0,1999.8,0.9]
[1770994127306,1.24937531,2001.0,1999.8,0.9]
[1770994127504,2.63637531,2001.0,1999.8,0.9]
[1770994127704,1.24937531,2001.0,1999.8,0.9]
[1770994127926,2.63637531,2001.0,1999.8,0.9]
[1770994128126,2.63637531,2001.0,1999.2,1.25049757]
[1770994128324,2.287,2000.9,1999.1,0.55658097]
[1770994128538,2.287,2000.9,1999.0,1.25153886]
[1770994128539,0.61143422,2000.7,1999.0,0.00153886]
[1770994128744,1.86105933,2000.6,1999.0,0.00153886]
[1770994128949,1.24962511,2000.6,1999.0,0.00153886]
[1770994129409,1.24962511,2000.6,1999.9,0.001]
[1770994130880,0.901,2000.9,1999.9,0.001]
[1770994131096,4.99725151,2001.2,1999.9,0.001]
[1770994131292,1.2490632,2001.5,2000.0,7.820332]
[1770994131448,1.2490632,2001.5,1999.9,0.001]
[1770994131845,1.2490632,2001.5,2000.0,9.004739]
[1770994132160,1.2490632,2001.5,2000.1,15.81600397]
[1770994132469,4.99825281,2001.6,2000.3,0.55658097]
[1770994132470,0.002,2001.6,2000.3,0.55658097]
[1770994132644,1.25100151,2001.6,2000.4,11.367598]
[1770994132844,1.25100151,2001.6,2000.5,1.24968757]
[1770994132845,0.002,2001.6,2000.5,1.24968757]
[1770994133156,0.002,2001.6,2000.6,2.847447]
[1770994133475,0.002,2001.6,2000.5,1.24968757]
[1770994133679,0.002,2001.6,2000.6,5.546899]
[1770994133973,1.24856415,2002.3,2000.7,10.803714]
[1770994134181,9.90653605,2002.8,2000.8,0.18685624]
[1770994134363,3.24343741,2003.2,2001.0,12.730972]
[1770994134564,0.61143422,2002.8,2000.6,2.145]
[1770994134873,0.61143422,2002.3,2000.6,2.145]
[1770994135086,2.286,2002.2,2000.6,3.39461882]
[1770994135276,1.384,2002.1,2000.7,9.587493]
[1770994135488,1.384,2002.1,2000.7,5.276357]
[1770994135684,11.1549755,2002.5,2000.7,3.676896]
[1770994135853,11.1549755,2002.5,2000.6,3.39461882]
[1770994135854,11.76640972,2002.5,2000.6,3.39461882]
[1770994136179,11.76640972,2002.5,1999.9,5.0009906]
[1770994136180,0.61143422,2002.3,1999.9,5.0009906]
[1770994136408,9.90653605,2000.8,2000.0,5.657355]
[1770994136552,2.286,2000.7,1999.1,1.25056094]
[1770994136750,1.24962511,2000.6,1999.1,1.80714191]
[1770994136950,1.24962511,2000.6,1999.1,1.80712025]
[1770994137177,1.24962511,2000.6,1999.0,0.00153886]
[1770994137352,0.61143422,2000.5,1999.0,0.00153886]
[1770994137551,0.61143422,2000.3,1999.0,0.00153886]
[1770994137856,0.61143422,2000.1,1999.0,0.00153886]
[1770994138473,1.386,2000.0,1999.0,0.00153886]
[1770994138872,1.2500625,1999.9,1999.0,0.00153886]
[1770994139383,2.11143,1999.8,1999.0,0.00153886]
[1770994139557,1.2500625,1999.9,1999.0,0.00153886]
[1770994139750,2.286,1999.8,1999.0,0.00153886]
[1770994140082,10.51797027,1999.6,1998.3,0.001]
[1770994140252,0.61143422,1999.6,1998.3,0.001]
[1770994140589,1.384,1999.6,1998.3,0.001]
[1770994140766,1.2500625,1999.9,1998.3,1.25205218]
[1770994141085,1.2500625,1999.9,1998.3,0.001]
[1770994141086,1.98601767,1999.8,1998.3,0.001]
[1770994141516,0.70441767,1999.6,1998.3,0.001]
[1770994141791,0.60201767,1999.5,1998.3,0.001]
[1770994142192,0.901,1999.6,1998.3,0.001]
[1770994142782,1.2500625,1999.9,1998.3,0.001]
[1770994142958,0.00153886,2000.0,1998.5,1.2509382]
[1770994143163,0.00153886,2000.0,1998.4,1.25095822]
[1770994143358,0.00153886,2000.0,1998.3,1.25202826]
[1770994143561,0.00153886,2000.0,1998.4,3.586852]
[1770994143773,0.00153886,2000.0,1998.4,0.001]
[1770994143973,0.00153886,2000.0,1998.5,4.959422]
[1770994144190,0.70595653,2000.0,1998.4,0.001]
[1770994144364,0.70595653,2000.0,1998.3,0.001]
[1770994144365,4.959422,1998.9,1998.3,0.001]
[1770994144565,0.60201767,1999.8,1998.3,0.001]